bitfinex/quotes_SOLUSD_20250823
["timestamp","ask_amount","ask_price","bid_price","bid_amount"]
[1755990436911,7.06937844,204.46,204.45,13.59559401]
[1755990437124,7.06937844,204.46,204.43,38.22]
[1755990437125,0.49,204.49,204.44,14.29559401]
[1755990437318,7.06937844,204.46,204.44,13.59559401]
[1755990437499,7.06937844,204.46,204.44,14.29559401]
[1755990437699,7.06937844,204.47,204.45,0.7]
[1755990437876,0.55,204.51,204.45,0.28432314]
[1755990438082,7.06937844,204.49,204.47,13.59559401]
[1755990438782,0.55,204.51,204.47,13.59559401]
[1755990439012,7.06937844,204.49,204.47,13.59559401]
[1755990439388,7.06937844,204.48,204.47,13.59559401]
[1755990441317,0.49,204.49,204.47,13.59559401]
[1755990441492,7.06937844,204.48,204.47,13.59559401]
[1755990443124,26.06,204.51,204.47,13.59559401]
[1755990443333,0.72,204.5,204.47,13.59559401]
[1755990443619,7.06937844,204.48,204.47,13.59559401]
[1755990443788,0.06,204.51,204.47,14.29559401]
[1755990443992,7.06937844,204.49,204.48,0.7]
[1755990444421,7.06937844,204.5,204.48,0.7]
[1755990444620,7.06937844,204.49,204.47,13.59559401]
[1755990444918,7.06937844,204.49,204.47,14.29559401]
[1755990445291,0.78,204.51,204.47,14.29559401]
[1755990445497,7.06937844,204.49,204.48,14.29559401]
[1755990446015,7.06937844,204.5,204.49,13.59559401]
[1755990446215,7.06937844,204.5,204.49,14.29559401]
[1755990446742,7.06937844,204.5,204.49,13.59559401]
[1755990448717,7.06937844,204.5,204.48,13.59559401]
[1755990449225,7.06937844,204.49,204.48,13.59559401]
[1755990449403,7.06937844,204.49,204.47,13.59559401]
[1755990449832,7.06937844,204.49,204.47,14.25559401]
[1755990452134,7.06937844,204.49,204.47,13.59559401]
[1755990452334,7.06937844,204.49,204.47,14.25559401]
[1755990452830,0.06,204.51,204.47,14.25559401]
[1755990453027,7.06937844,204.5,204.48,0.66]
[1755990453215,7.06937844,204.5,204.47,13.59559401]
[1755990453536,0.06,204.51,204.48,0.66]
[1755990453711,7.06937844,204.5,204.48,0.66]
[1755990455509,7.06937844,204.5,204.47,14.25559401]
[1755990455916,7.06937844,204.5,204.48,0.66]
[1755990456639,26.06,204.51,204.47,13.59559401]
[1755990456809,7.06937844,204.5,204.47,14.25559401]
[1755990457527,7.06937844,204.5,204.48,0.66]
[1755990460412,7.06937844,204.5,204.47,13.59559401]
[1755990460742,7.56937844,204.5,204.47,13.59559401]
[1755990460924,7.06937844,204.49,204.47,13.59559401]
[1755990461115,7.06937844,204.49,204.47,14.25559401]
[1755990462819,0.56,204.51,204.47,14.25559401]
[1755990463139,7.06937844,204.49,204.48,14.25559401]
[1755990463341,7.06937844,204.5,204.48,14.25559401]
[1755990463840,7.06937844,204.5,204.49,13.59559401]
[1755990465432,26.06,204.51,204.49,13.59559401]
[1755990465737,7.06937844,204.5,204.49,13.59559401]
[1755990472130,0.06,204.51,204.49,13.59559401]
[1755990472846,26.75,204.51,204.49,13.59559401]
[1755990473226,26.06,204.51,204.49,13.59559401]
[1755990473428,26.06,204.51,204.49,14.25559401]
[1755990474048,26.06,204.51,204.49,13.59559401]
[1755990476756,0.06,204.51,204.49,14.25559401]
[1755990477749,0.06,204.51,204.49,13.59559401]
[1755990478531,0.06,204.51,204.5,0.69]
[1755990479627,0.06,204.51,204.48,13.59559401]
[1755990479848,0.06,204.51,204.49,0.69]
[1755990480541,5.27674368,204.51,204.48,13.59559401]
[1755990480747,5.27674368,204.51,204.48,14.28559401]
[1755990480944,0.76,204.51,204.48,14.28559401]
[1755990481254,0.06,204.51,204.48,14.28559401]
[1755990482954,0.06,204.51,204.49,0.69]
[1755990483449,0.06,204.51,204.48,13.59559401]
[1755990483652,0.06,204.51,204.5,0.69]
[1755990483839,0.06,204.51,204.49,0.69]
[1755990485242,0.76,204.51,204.48,13.59559401]
[1755990485555,0.76,204.51,204.48,14.28559401]
[1755990485747,0.06,204.51,204.48,14.28559401]
[1755990487253,0.06,204.51,204.49,0.69]
[1755990490468,0.76,204.51,204.48,13.59559401]
[1755990490759,0.06,204.51,204.49,0.69]
[1755990491062,4.57674368,204.51,204.49,0.69]
[1755990494354,0.06,204.51,204.49,0.69]
[1755990494669,4.57674368,204.51,204.49,0.69]
[1755990498040,5.27674368,204.51,204.48,13.59559401]
[1755990498648,5.27674368,204.51,204.48,14.28559401]
[1755990498851,0.06,204.51,204.49,0.69]
[1755990499246,0.06,204.51,204.5,13.59559401]
[1755990499451,0.06,204.51,204.5,18.11233769]
[1755990499657,0.06,204.51,204.5,0.69]
[1755990500673,0.06,204.51,204.5,14.28559401]
[1755990502462,0.06,204.51,204.5,13.59559401]
[1755990503071,0.06,204.51,204.5,14.28559401]
[1755990503448,0.06,204.51,204.5,13.59559401]
[1755990505978,0.06,204.51,204.5,14.28559401]
[1755990509253,0.06,204.51,204.5,13.59559401]
[1755990509454,0.06,204.51,204.5,14.26559401]
[1755990509974,0.06,204.51,204.5,13.59559401]
[1755990510581,0.06,204.51,204.5,14.26559401]
[1755990510953,0.06,204.51,204.5,13.59559401]
[1755990511880,0.06,204.51,204.5,14.26559401]
[1755990513079,0.06,204.51,204.5,13.59559401]
[1755990513864,0.06,204.51,204.5,14.26559401]
[1755990522795,3.13674368,204.53,204.51,13.59559401]
[1755990523488,3.13674368,204.53,204.48,18.77026904]
[1755990523669,3.13674368,204.53,204.52,0.67]
[1755990523870,3.13674368,204.53,204.5,13.59559401]
[1755990524371,4.51674368,204.52,204.48,14.54991715]
[1755990524567,4.51674368,204.53,204.5,13.59559401]
[1755990524777,4.51674368,204.53,204.5,14.26559401]
[1755990529293,4.57674368,204.53,204.5,14.26559401]
[1755990529882,4.57674368,204.53,204.51,0.67]
[1755990530567,5.25674368,204.53,204.5,13.59559401]
[1755990530764,0.74,204.53,204.5,0.67]
[1755990530966,0.06,204.53,204.5,0.67]
[1755990531176,4.57674368,204.53,204.5,0.67]
[1755990532288,5.25674368,204.53,204.48,13.87991715]
[1755990532457,4.57674368,204.53,204.5,0.67]
[1755990532787,0.68,204.52,204.48,14.54991715]
[1755990532987,4.57674368,204.53,204.5,13.59559401]
[1755990533192,5.25674368,204.53,204.5,13.59559401]
[1755990533366,5.25674368,204.53,204.5,14.26559401]
[1755990534898,4.51674368,204.52,204.5,14.26559401]
[1755990535280,5.19674368,204.51,204.48,13.59559401]
[1755990535597,5.19674368,204.51,204.48,14.26559401]
[1755990536093,4.51674368,204.51,204.48,14.26559401]
[1755990540197,4.51674368,204.49,204.44,0.67]
[1755990540382,4.51674368,204.48,204.46,13.59559401]
[1755990540998,4.51674368,204.48,204.46,0.67]
[1755990543380,4.51674368,204.47,204.45,13.59559401]
[1755990543985,4.51674368,204.47,204.44,0.14216157]
[1755990544286,4.51674368,204.47,204.45,0.67]
[1755990545404,4.51674368,204.47,204.46,0.03]
[1755990546792,0.72,204.48,204.46,0.03]
[1755990547487,4.51674368,204.47,204.46,13.62559401]
[1755990549809,4.51674368,204.47,204.46,0.03]
[1755990550015,0.72,204.49,204.46,0.03]
[1755990550199,4.51674368,204.47,204.46,0.03]
[1755990550392,4.51674368,204.48,204.46,0.03]
[1755990550593,5.23674368,204.48,204.46,0.03]
[1755990553217,0.72,204.5,204.46,0.7]
[1755990553510,0.06,204.53,204.47,18.11233769]
[1755990553684,4.51674368,204.52,204.48,0.67]
[1755990554082,4.51674368,204.52,204.49,13.59559401]
[1755990554283,4.57674368,204.53,204.5,0.67]
[1755990554516,5.29674368,204.53,204.5,0.67]
[1755990554710,0.78,204.53,204.5,0.67]
[1755990555011,0.06,204.53,204.5,0.67]
[1755990556216,0.06,204.53,204.51,0.67]
[1755990556414,4.57674368,204.53,204.51,0.67]
[1755990559618,4.51674368,204.52,204.51,0.67]
[1755990559791,4.51674368,204.52,204.5,0.67]
[1755990560947,0.06,204.53,204.49,13.59559401]
[1755990561106,4.51674368,204.52,204.5,0.67]
[1755990561309,4.51674368,204.52,204.49,13.59559401]
[1755990561522,4.51674368,204.52,204.49,18.48568684]
[1755990561733,4.51674368,204.52,204.5,0.67]
[1755990563223,0.06,204.53,204.51,0.67]
[1755990563417,4.51674368,204.52,204.51,0.67]
[1755990564102,4.51674368,204.52,204.49,19.15568684]
[1755990564302,4.51674368,204.52,204.5,0.67]
[1755990564836,0.78,204.53,204.5,0.67]
[1755990565130,4.51674368,204.51,204.49,13.59559401]
[1755990565333,4.51674368,204.51,204.49,14.26559401]
[1755990565740,4.51674368,204.51,204.46,0.03]
[1755990566021,0.06,204.53,204.47,14.26559401]
[1755990566022,5.23674368,204.5,204.47,14.26559401]
[1755990566206,4.51674368,204.5,204.47,14.26559401]
[1755990567624,5.21674368,204.5,204.47,14.26559401]
[1755990568222,5.21674368,204.49,204.47,13.59559401]
[1755990568617,0.7,204.5,204.47,13.59559401]
[1755990568818,4.51674368,204.49,204.47,13.59559401]
[1755990571056,4.51674368,204.49,204.47,14.31559401]
[1755990571213,4.51674368,204.49,204.48,0.72]
[1755990571632,4.51674368,204.49,204.47,13.59559401]
[1755990571853,4.51674368,204.49,204.47,14.31559401]
[1755990572135,0.7,204.51,204.47,14.31559401]
[1755990572541,4.51674368,204.49,204.47,14.31559401]
[1755990573141,0.7,204.51,204.47,14.31559401]
[1755990573327,4.51674368,204.49,204.47,14.31559401]
[1755990575238,4.51674368,204.5,204.47,14.31559401]
[1755990576526,5.21674368,204.5,204.47,14.31559401]
[1755990577864,4.51674368,204.5,204.47,13.59559401]
[1755990578160,4.51674368,204.49,204.47,0.72]
[1755990578445,4.51674368,204.49,204.47,0.75]
[1755990581152,0.7,204.51,204.47,0.75]
[1755990581357,4.51674368,204.49,204.47,0.75]
[1755990581523,4.51674368,204.52,204.47,0.75]
[1755990581729,5.21674368,204.52,204.47,5.26674368]
[1755990582035,0.7,204.52,204.48,0.72]
[1755990582230,0.7,204.52,204.47,0.03]
[1755990582428,0.7,204.52,204.49,0.72]
[1755990582938,26.06,204.53,204.49,0.72]
[1755990583141,31.27674368,204.53,204.49,0.72]
[1755990583539,0.06,204.53,204.49,0.72]
[1755990587344,4.57674368,204.53,204.49,0.72]
[1755990589667,4.51674368,204.52,204.49,0.72]
[1755990590666,0.76,204.53,204.5,0.72]
[1755990590870,5.27674368,204.53,204.5,0.72]
[1755990591365,5.27674368,204.53,204.49,0.72]
[1755990592349,0.7,204.52,204.49,0.72]
[1755990592969,4.57674368,204.53,204.49,0.72]
[1755990593168,5.27674368,204.53,204.49,0.72]
[1755990593356,5.27674368,204.53,204.52,18.11233769]
[1755990593357,0.06,204.53,204.52,18.11233769]
[1755990593549,0.06,204.53,204.52,18.83233769]
[1755990594246,0.06,204.53,204.52,14.31559401]
[1755990601573,0.06,204.53,204.52,19.20509136]
[1755990602162,0.06,204.53,204.52,13.59559401]
[1755990602480,0.76,204.53,204.52,13.59559401]
[1755990603271,5.27674368,204.53,204.49,0.03]
[1755990603473,4.51674368,204.51,204.49,0.03]
[1755990603851,4.51674368,204.52,204.49,0.73]
[1755990604061,0.06,204.53,204.5,0.7]
[1755990604360,0.06,204.53,204.51,13.59559401]
[1755990604563,0.06,204.53,204.52,14.29559401]
[1755990608469,0.06,204.53,204.52,13.59559401]
[1755990611900,0.06,204.53,204.52,14.29559401]
[1755990613493,0.06,204.53,204.52,13.59559401]
[1755990613795,0.06,204.53,204.52,14.29559401]
[1755990617698,0.06,204.53,204.52,19.18509136]
[1755990618672,0.06,204.53,204.52,14.29559401]
[1755990622878,0.06,204.53,204.52,13.59559401]
[1755990623785,0.06,204.53,204.52,14.57991715]
[1755990624000,0.06,204.53,204.52,23.98615818]
[1755990626402,0.06,204.53,204.52,61.96615818]
[1755990627691,0.06,204.53,204.52,61.99615818]
[1755990630199,0.06,204.53,204.52,57.4794145]
[1755990630497,0.06,204.53,204.52,61.99615818]
[1755990633314,0.06,204.53,204.52,57.4794145]
[1755990633502,0.06,204.53,204.52,61.99615818]
[1755990635216,0.06,204.53,204.52,61.97615818]
[1755990636922,0.06,204.53,204.52,24.01615818]
[1755990637120,0.06,204.53,204.52,61.97615818]
[1755990638115,0.06,204.53,204.52,24.01615818]
[1755990638316,0.06,204.53,204.52,61.97615818]
[1755990642217,0.72,204.53,204.52,51.86991715]
[1755990642513,0.72,204.53,204.52,51.58559401]
[1755990649911,0.06,204.53,204.52,51.58559401]
[1755990659114,0.06,204.53,204.52,52.28559401]
[1755990659622,0.06,204.53,204.52,57.17509136]
[1755990661340,0.06,204.53,204.52,51.58559401]
[1755990661952,0.06,204.53,204.52,52.28559401]
[1755990663144,0.06,204.53,204.52,51.58559401]
[1755990663736,0.06,204.53,204.52,57.17509136]
[1755990668542,0.06,204.53,204.52,61.97615818]
[1755990674937,0.06,204.56,204.55,39.59559401]
[1755990675139,0.06,204.56,204.55,82.29666083]
[1755990675324,0.06,204.56,204.55,45.09666083]
[1755990675834,0.06,204.56,204.55,82.99666083]
[1755990676239,0.06,204.56,204.55,87.88544107]
[1755990677435,0.73,204.56,204.55,51.77991715]
[1755990677842,0.06,204.56,204.55,51.77991715]
[1755990678028,0.73,204.58,204.55,51.77991715]
[1755990678029,0.06,204.58,204.55,56.99666083]
[1755990678227,0.06,204.59,204.58,39.87991715]
[1755990678430,0.06,204.59,204.58,50.6970881]
[1755990678734,4.51674368,204.68,204.59,0.14216157]
[1755990678933,0.67,204.67,204.65,0.28432314]
[1755990679135,0.67,204.67,204.66,51.49559401]
[1755990679645,0.67,204.67,204.66,13.59559401]
[1755990679833,5.18674368,204.67,204.66,37.9]
[1755990680023,0.67,204.67,204.66,37.9]
[1755990680642,0.67,204.67,204.66,51.49559401]
[1755990681234,0.67,204.69,204.67,13.59559401]
[1755990681435,0.67,204.69,204.68,37.9]
[1755990681436,7.04542805,204.69,204.68,37.9]
[1755990681944,7.71542805,204.69,204.68,37.9]
[1755990682168,0.67,204.71,204.68,37.9]
[1755990682334,7.71542805,204.71,204.68,37.9]
[1755990682533,0.67,204.7,204.68,37.9]
[1755990682731,0.67,204.69,204.68,51.49559401]
[1755990685024,7.04542805,204.71,204.68,51.49559401]
[1755990685326,0.67,204.7,204.69,13.59559401]
[1755990685547,0.67,204.7,204.69,51.47559401]
[1755990688239,0.67,204.7,204.67,0.28432314]
[1755990688445,0.67,204.7,204.69,13.59559401]
[1755990688668,0.67,204.7,204.62,0.69]
[1755990688834,0.67,204.7,204.65,13.87991715]
[1755990689041,7.70542805,204.7,204.67,13.59559401]
[1755990689346,0.66,204.69,204.68,51.47559401]
[1755990690240,7.70542805,204.69,204.68,51.47559401]
[1755990691647,0.66,204.69,204.68,51.47559401]
[1755990691842,0.66,204.71,204.68,51.47559401]
[1755990692059,7.70542805,204.71,204.68,51.47559401]
[1755990693757,7.04542805,204.71,204.68,51.47559401]
[1755990693959,0.66,204.71,204.68,51.47559401]
[1755990694261,7.70542805,204.71,204.68,51.47559401]
[1755990694462,7.76542805,204.71,204.68,51.47559401]
[1755990694761,7.04542805,204.69,204.68,51.47559401]
[1755990696259,7.70542805,204.69,204.68,51.47559401]
[1755990696466,7.04542805,204.69,204.68,51.47559401]
[1755990696659,7.70542805,204.69,204.68,51.47559401]
[1755990696861,7.04542805,204.69,204.68,51.47559401]
[1755990697444,0.72,204.71,204.68,51.47559401]
[1755990697662,7.04542805,204.69,204.68,51.47559401]
[1755990700377,0.06,204.71,204.69,13.59559401]
[1755990700579,0.72,204.71,204.69,13.59559401]
[1755990700868,0.06,204.71,204.69,13.59559401]
[1755990701160,0.06,204.71,204.69,37.86]
[1755990701462,4.50857443,204.7,204.69,51.45559401]
[1755990701639,4.50857443,204.7,204.69,52.14559401]
[1755990702554,4.50857443,204.7,204.69,51.45559401]
[1755990702757,4.50857443,204.7,204.69,13.59559401]
[1755990703075,4.50857443,204.7,204.69,52.14559401]
[1755990703763,4.50857443,204.7,204.69,51.45559401]
[1755990706473,4.50857443,204.7,204.69,52.14559401]
[1755990707562,4.50857443,204.7,204.69,51.45559401]
[1755990707764,0.06,204.71,204.69,52.14559401]
[1755990708073,4.50857443,204.7,204.69,52.14559401]
[1755990710354,0.06,204.71,204.69,52.14559401]
[1755990710545,0.06,204.71,204.7,0.69]
[1755990710979,4.56857443,204.71,204.7,0.69]
[1755990711282,4.56857443,204.71,204.69,51.45559401]
[1755990711581,4.56857443,204.7,204.69,52.14559401]
[1755990713159,0.06,204.7,204.69,52.14559401]
[1755990713377,4.56857443,204.7,204.69,52.14559401]
[1755990716064,0.06,204.7,204.69,52.14559401]
[1755990716255,4.56857443,204.7,204.69,52.14559401]
[1755990719093,0.06,204.7,204.69,52.14559401]
[1755990719291,4.56857443,204.7,204.69,52.14559401]
[1755990719675,4.56857443,204.7,204.69,51.45559401]
[1755990719991,4.56857443,204.7,204.69,52.15559401]
[1755990721888,5.09857443,204.7,204.69,37.84]
[1755990722503,4.56857443,204.7,204.69,37.84]
[1755990722881,5.28857443,204.7,204.69,37.84]
[1755990723796,5.28857443,204.7,204.68,51.43559401]
[1755990724094,4.50857443,204.69,204.68,51.43559401]
[1755990730304,0.06,204.7,204.68,52.13559401]
[1755990730600,4.50857443,204.69,204.68,52.13559401]
[1755990731307,4.50857443,204.69,204.68,51.43559401]
[1755990732394,4.50857443,204.69,204.68,52.13559401]
[1755990738118,0.06,204.7,204.68,52.13559401]
[1755990738316,4.50857443,204.69,204.68,52.13559401]
[1755990739315,0.06,204.7,204.68,52.13559401]
[1755990739519,4.50857443,204.69,204.68,52.13559401]
[1755990739816,0.06,204.7,204.68,52.13559401]
[1755990739984,4.50857443,204.69,204.68,52.13559401]
[1755990740187,0.06,204.7,204.68,52.13559401]
[1755990740504,4.50857443,204.69,204.68,52.13559401]
[1755990740708,0.06,204.7,204.68,14.29559401]
[1755990741012,0.06,204.7,204.68,52.11559401]
[1755990741215,4.50857443,204.69,204.68,52.11559401]
[1755990741599,0.06,204.7,204.68,52.11559401]
[1755990742126,4.50857443,204.69,204.68,52.11559401]
[1755990745604,0.06,204.7,204.68,52.11559401]
[1755990745912,4.50857443,204.69,204.68,52.11559401]
[1755990746210,0.06,204.7,204.68,52.11559401]
[1755990746402,4.50857443,204.69,204.68,52.11559401]
[1755990747115,0.06,204.7,204.68,52.11559401]
[1755990747300,4.50857443,204.69,204.68,52.11559401]
[1755990748629,0.06,204.7,204.68,14.29559401]
[1755990748925,4.50857443,204.69,204.68,52.09559401]
[1755990749321,4.50857443,204.69,204.68,14.29559401]
[1755990749512,4.50857443,204.69,204.68,52.09559401]
[1755990749828,4.50857443,204.69,204.66,0.71]
[1755990750115,4.50857443,204.69,204.67,52.10559401]
[1755990750318,0.06,204.7,204.68,0.71]
[1755990750489,4.50857443,204.69,204.68,14.30559401]
[1755990751920,0.06,204.7,204.68,14.30559401]
[1755990752094,4.50857443,204.69,204.68,14.30559401]
[1755990752723,0.06,204.7,204.68,14.30559401]
[1755990752906,4.56857443,204.7,204.69,0.71]
[1755990755522,4.56857443,204.7,204.68,13.59559401]
[1755990755818,0.06,204.7,204.68,13.59559401]
[1755990756014,4.56857443,204.7,204.68,14.30559401]
[1755990757630,0.06,204.7,204.68,14.30559401]
[1755990757832,4.56857443,204.7,204.68,14.30559401]
[1755990760746,0.06,204.7,204.68,14.30559401]
[1755990761036,4.50857443,204.69,204.68,52.10559401]
[1755990761914,0.06,204.7,204.68,52.10559401]
[1755990762118,4.50857443,204.69,204.68,52.10559401]
[1755990763142,0.06,204.7,204.69,13.59559401]
[1755990763446,0.06,204.7,204.69,19.09849158]
[1755990764501,0.06,204.7,204.69,23.98392809]
[1755990768531,0.06,204.7,204.69,19.47535366]
[1755990769541,0.06,204.7,204.69,23.98392809]
[1755990770733,0.06,204.7,204.69,19.47535366]
[1755990771415,0.06,204.7,204.69,23.98392809]
[1755990773937,0.06,204.7,204.69,19.47535366]
[1755990774126,0.06,204.7,204.69,23.98392809]
[1755990776734,0.06,204.7,204.69,19.47535366]
[1755990779336,0.06,204.7,204.69,14.58991715]
[1755990780335,0.06,204.7,204.69,51.65991715]
[1755990780724,0.06,204.7,204.62,4.88707388]
[1755990780725,5.27857443,204.7,204.62,4.88707388]
[1755990780919,0.06,204.7,204.68,13.59559401]
[1755990781119,0.06,204.7,204.68,51.37559401]
[1755990781328,0.77,204.7,204.68,51.37559401]
[1755990782654,0.71,204.69,204.68,51.65991715]
[1755990783241,5.21857443,204.69,204.68,0.28432314]
[1755990783553,5.21857443,204.69,204.68,38.06432314]
[1755990783913,4.50857443,204.69,204.68,38.06432314]
[1755990786979,0.06,204.7,204.69,13.59559401]
[1755990787150,4.56857443,204.7,204.69,13.59559401]
[1755990791279,5.27857443,204.7,204.69,13.59559401]
[1755990792175,4.56857443,204.7,204.69,13.59559401]
[1755990792775,5.27857443,204.7,204.69,13.59559401]
[1755990793677,4.56857443,204.7,204.69,13.59559401]
[1755990794379,5.27857443,204.7,204.69,13.59559401]
[1755990794674,0.06,204.7,204.69,13.59559401]
[1755990794878,4.56857443,204.7,204.69,13.59559401]
[1755990795776,0.06,204.7,204.69,13.59559401]
[1755990796284,4.56857443,204.7,204.69,13.59559401]
[1755990801381,0.06,204.7,204.69,13.59559401]
[1755990801558,4.56857443,204.7,204.69,13.59559401]
[1755990806781,0.06,204.7,204.69,14.29559401]
[1755990806962,4.56857443,204.7,204.69,14.29559401]
[1755990807690,4.56857443,204.7,204.69,13.59559401]
[1755990808203,0.06,204.7,204.69,13.59559401]
[1755990808411,4.56857443,204.7,204.69,13.59559401]
[1755990815712,0.06,204.7,204.69,13.59559401]
[1755990815913,4.56857443,204.7,204.69,13.59559401]
[1755990827320,4.56857443,204.7,204.69,14.28559401]
[1755990827831,4.56857443,204.7,204.69,13.59559401]
[1755990830230,5.23857443,204.7,204.69,13.59559401]
[1755990830435,4.56857443,204.7,204.69,13.59559401]
[1755990835234,0.06,204.7,204.69,13.59559401]
[1755990842540,0.06,204.7,204.69,14.26559401]
[1755990844835,4.56857443,204.7,204.69,13.59559401]
[1755990845345,4.56857443,204.7,204.69,14.26559401]
[1755990846514,0.06,204.7,204.69,14.26559401]
[1755990846714,4.56857443,204.7,204.69,14.26559401]
[1755990848059,4.56857443,204.7,204.69,13.59559401]
[1755990848742,0.06,204.7,204.69,13.59559401]
[1755990848946,4.56857443,204.7,204.69,14.26559401]
[1755990849350,4.56857443,204.7,204.69,13.59559401]
[1755990851237,0.06,204.7,204.69,13.59559401]
[1755990851432,4.56857443,204.7,204.69,13.59559401]
[1755990851724,0.06,204.7,204.69,13.59559401]
[1755990851928,4.56857443,204.7,204.69,14.26559401]
[1755990852139,0.06,204.7,204.69,14.26559401]
[1755990852445,4.56857443,204.7,204.69,14.26559401]
[1755990854950,0.06,204.7,204.69,14.26559401]
[1755990855126,4.56857443,204.7,204.69,13.59559401]
[1755990855332,4.56857443,204.7,204.68,51.31559401]
[1755990855635,4.56857443,204.7,204.68,51.98559401]
[1755990858639,4.56857443,204.7,204.69,14.26559401]
[1755990859557,0.06,204.7,204.69,14.26559401]
[1755990859731,4.56857443,204.7,204.69,14.26559401]
[1755990861138,0.06,204.7,204.69,14.26559401]
[1755990870360,4.56857443,204.7,204.69,51.96559401]
[1755990870739,4.56857443,204.7,204.69,51.29559401]
[1755990870948,5.22857443,204.7,204.69,51.29559401]
[1755990871333,4.56857443,204.7,204.69,51.29559401]
[1755990872757,0.06,204.7,204.69,51.29559401]
[1755990873062,4.56857443,204.7,204.69,51.29559401]
[1755990877787,5.22857443,204.7,204.64,0.68]
[1755990878075,5.22857443,204.7,204.62,2.54803657]
[1755990878076,4.50857443,204.65,204.59,0.03]
[1755990878281,4.50857443,204.61,204.59,37.73]
[1755990878652,0.66,204.63,204.59,38.41]
[1755990878965,4.50857443,204.61,204.59,38.41]
[1755990879147,4.50857443,204.61,204.6,0.68]
[1755990879345,4.50857443,204.61,204.59,37.73]
[1755990879655,4.50857443,204.61,204.59,38.41]
[1755990880054,4.50857443,204.62,204.59,38.41]
[1755990880256,0.66,204.69,204.61,18.10416844]
[1755990880457,0.06,204.7,204.65,13.59559401]
[1755990880458,4.56857443,204.7,204.65,13.59559401]
[1755990880642,0.06,204.7,204.66,4.50857443]
[1755990880837,0.06,204.7,204.67,0.68]
[1755990881245,0.06,204.7,204.68,18.10416844]
[1755990881474,0.06,204.7,204.69,56.48416844]
[1755990884074,0.06,204.7,204.69,51.97559401]
[1755990885171,0.06,204.7,204.69,56.76849158]
[1755990885477,0.06,204.7,204.69,52.25991715]
[1755990885669,0.06,204.7,204.69,56.76849158]
[1755990886474,0.06,204.7,204.69,52.25991715]
[1755990886674,0.06,204.7,204.69,56.76849158]
[1755990887763,0.06,204.7,204.69,61.65392809]
[1755990889084,0.06,204.7,204.69,56.76849158]
[1755990893887,0.06,204.7,204.69,19.06849158]
[1755990894177,0.06,204.7,204.69,52.23991715]
[1755990896269,0.06,204.7,204.69,56.74849158]
[1755990898416,0.06,204.7,204.69,19.06849158]
[1755990898571,0.06,204.7,204.69,56.74849158]
[1755990900197,0.06,204.7,204.69,13.87991715]
[1755990900501,0.06,204.7,204.69,51.55991715]
[1755990900674,0.77,204.7,204.65,13.59559401]
[1755990900878,0.71,204.69,204.67,13.59559401]
[1755990901105,0.71,204.69,204.68,51.27559401]
[1755990902404,4.56857443,204.7,204.68,51.27559401]
[1755990902604,5.27857443,204.7,204.68,51.27559401]
[1755990903299,0.06,204.7,204.68,51.27559401]
[1755990903504,0.06,204.7,204.69,0.65]
[1755990903706,0.06,204.7,204.68,51.92559401]
[1755990903884,0.06,204.7,204.68,51.27559401]
[1755990904807,0.77,204.7,204.68,51.27559401]
[1755990906181,0.06,204.7,204.68,51.27559401]
[1755990906383,0.71,204.69,204.68,51.27559401]
[1755990907113,0.71,204.69,204.68,37.68]
[1755990907317,5.21857443,204.69,204.68,37.66]
[1755990907483,5.21857443,204.69,204.64,13.59559401]
[1755990907793,4.50857443,204.65,204.64,37.66]
[1755990907994,5.21857443,204.65,204.63,37.66]
[1755990908204,5.21857443,204.64,204.62,37.66]
[1755990908509,7.75852652,204.64,204.62,37.66]
[1755990911912,0.71,204.66,204.62,37.66]
[1755990912098,7.04852652,204.64,204.62,37.66]
[1755990916119,7.04852652,204.63,204.62,51.25559401]
[1755990921354,0.71,204.67,204.62,51.90559401]
[1755990921642,7.04852652,204.64,204.63,0.65]
[1755990923130,0.71,204.67,204.63,0.65]
[1755990923331,7.04852652,204.64,204.62,51.25559401]